Cogmind - Beta 14 @@@ ROGUE MODE // 2024.12.04 @ 15:48:11 Player: hoganstuff Result: Destroyed by S-27 Virus with Autogun Performance ------------- Evolutions (3) 1500 Regions Visited (6) 1200 Robots Destroyed (52) 260 Value Destroyed (1728) 1728 Prototype IDs (28) 560 Alien Tech Used (0) 0 Bonus (300) 300 TOTAL SCORE: 5548 Bonus ------- Aligned with FarCom 300 Cogmind --------- Core Integrity 0/700 Matter 208/300 Energy 99/100 System Corruption 9% Temperature Cool (0) Movement Core (50) Location -7/Factory Parts ------- > --- POWER (2) -------- (None) > --- PROPULSION (3) --- (None) > --- UTILITY (5) ------ (None) > --- WEAPON (3) ------- (None) > --- INVENTORY (5) ---- Improved Ion Engine Carbon-fiber Leg Titanium Leg Compact Battery (200) Energy Filter Peak State ------------ > --- POWER ------------ Improved Ion Engine Light Angular Momentum Engine > --- PROPULSION ------- Carbon-fiber Leg Carbon-fiber Leg Titanium Leg > --- UTILITY ---------- Improved Heat Sink Energy Filter Weapon Cycler Hardened Medium Armor Plating Hardened Medium Armor Plating > --- WEAPON ----------- Arc Projector Heavy Particle Gun Heavy Particle Gun > --- INVENTORY -------- Carbon-fiber Leg Titanium Leg Compact Battery Energy Filter [Rating: 46] Favorites ----------- Power Light Nuclear Core Engine Improved Ion Engine Power Core Light Nuclear Core Propulsion Light Treads Treads Light Treads Leg Carbon-fiber Leg Utility Small Storage Unit Device Improved Heat Sink Storage Small Storage Unit Processor Armor Integrity Analyzer Protection Hardened Medium Armor Plating Weapon Particle Gun Energy Gun Particle Gun Energy Cannon Ion Cannon Ballistic Gun Light Assault Rifle Ballistic Cannon Light Cannon Slashing Weapon Mining Claw Build | -11 -10 -10 -10 -9 -8 -7 ------- Run | Yrd Mat Min Exi Min Mat Fac Slots Evolved 6 | . . . . . 4 2 Power 1 | . . . . . . 1 Propulsion 1 | . . . . . 1 . Utility 3 | . . . . . 2 1 Weapon 1 | . . . . . 1 . Parts Attached 80 | 6 5 10 . 1 45 13 Power 7 | 1 1 . . . 3 2 Engine 4 | 1 . . . . 1 2 Core 3 | . 1 . . . 2 . Reactor . | . . . . . . . Propulsion 17 | 2 . 2 . . 11 2 Treads 7 | 2 . 2 . . 3 . Leg 10 | . . . . . 8 2 Wheel . | . . . . . . . Hover . | . . . . . . . Flight . | . . . . . . . Utility 23 | 1 1 1 . 1 15 4 Device 9 | . . 1 . 1 5 2 Storage 3 | 1 . . . . 2 . Processor 1 | . . . . . 1 . Hackware . | . . . . . . . Protection 10 | . 1 . . . 7 2 Artifact . | . . . . . . . Weapon 33 | 2 3 7 . . 16 5 Energy Gun 20 | . 2 4 . . 10 4 Energy Cannon 3 | . . . . . 3 . Ballistic Gun 3 | 2 . . . . . 1 Ballistic Cannon 5 | . . 2 . . 3 . Launcher . | . . . . . . . Special Weapon . | . . . . . . . Impact Weapon . | . . . . . . . Slashing Weapon 2 | . 1 1 . . . . Piercing Weapon . | . . . . . . . Special Melee Weapon . | . . . . . . . Unidentified Prototypes 3 | . . 1 . . 2 . Parts Lost 22 | . . . . . 9 13 Power 2 | . . . . . 1 1 Propulsion 4 | . . . . . 1 3 Utility 6 | . . . . . 2 4 Weapon 10 | . . . . . 5 5 Highest Loss Streak 9 | . . . . . 4 9 To Critical Strikes 1 | . . . . . 1 . Average Slot Usage (%) 95 | . 98 100 100 100 92 94 Engine 2 | . 8 . . . . 9 Core 9 | . 5 14 14 14 7 4 Treads 17 | . 28 28 28 28 13 . Leg 7 | . . . . . 10 21 Device 11 | . . 11 14 14 10 22 Storage 10 | . 14 14 14 14 9 3 Processor 3 | . . . . . 8 . Protection 5 | . 12 2 . . 6 8 Energy Gun 17 | . 5 18 28 28 15 18 Energy Cannon 1 | . . . . . 3 2 Ballistic Gun 3 | . 22 4 . . . . Ballistic Cannon 2 | . . 5 . . 4 . Peak Build Rating 46 | 6 10 20 20 21 37 46 Average Rating 25 | 4 7 18 20 19 29 41 On Entrance 15 | . 6 10 20 20 18 37 Naked Turns 33 | . . . . . . 33 Heaviest Build 47 | 12 15 17 17 17 39 47 Greatest Support 60 | 40 40 40 40 40 60 47 Greatest Overweight (x) 3 | 3 . . . . 2 2 Average Overweight (x) . | . . . . . . . Largest Inventory Capacity 10 | 8 8 8 8 8 10 10 Average Capacity 8 | 7 8 8 8 8 9 7 Most Carried 10 | 1 7 8 8 8 10 10 Average Carried 7 | . 4 7 8 7 7 7 Final Capacity 10 | 8 8 8 8 8 10 5 Final Carried 10 | 1 7 8 8 8 10 5 Class Distribution -------------------- 27% | Mutant 26% | Scavenger-Mutant 13% | Tank 12% | Scavenger-Tank 10% | Scavenger-Skirmisher 8% | Skirmisher Dominant Class ---------------- Mutant | -10/Materials Mutant | -10/Mines Scavenger-Mutant | -10/Exiles Scavenger-Skirmisher | -9/Mines Scavenger-Tank | -8/Materials Tank | -7/Factory Resources | -11 -10 -10 -10 -9 -8 -7 ----------- Run | Yrd Mat Min Exi Min Mat Fac Matter Collected 1414 | 247 139 56 . 26 730 216 Remotely . | . . . . . . . Salvage Created 2039 | . 302 . . 5 1241 491 Parts 104 | . 16 . . . 61 27 Haulers Intercepted 3 | . . . . . 3 . Recyclers Shooed 3 | . . . . . 2 1 Parts Field Recycled . | . . . . . . . Retrieved Matter . | . . . . . . . Parts Self-Destructed . | . . . . . . . Prevented . | . . . . . . . Kills | -11 -10 -10 -10 -9 -8 -7 ------- Run | Yrd Mat Min Exi Min Mat Fac Combat Hostiles Destroyed 36 | . 4 . . 1 23 8 Guns 21 | . 4 . . 1 11 5 Cannons 12 | . . . . . 10 2 AOE 2 | . . . . . 1 1 Classes Destroyed 14 | . 4 . . 1 8 1 Worker 2 | . . . . . 1 1 Builder 1 | . 1 . . . . . Tunneler 2 | . . . . . 1 1 Hauler 3 | . . . . . 3 . Recycler 3 | . 1 . . . 2 . Operator 1 | . . . . . 1 . Watcher 5 | . 1 . . . 3 1 Swarmer 6 | . . . . . 6 . Grunt 20 | . 4 . . . 11 5 Brawler 3 | . . . . . 2 1 Sentry 4 | . . . . . 3 1 Hunter 1 | . . . . . 1 . Programmer 1 | . . . . . . 1 Assembled 1 | . . . . 1 . . Best Kill Streak 3 | . 2 . . 1 3 3 Combat Bots Only 3 | . 2 . . 1 3 2 Max Kills in Single Turn 2 | . 1 . . 1 1 2 Gunslinging . | . . . . . . . Exploded 1 | . . . . . 1 1 Melee . | . . . . . . . Uniques/NPCs Destroyed . | . . . . . . . Combat | -11 -10 -10 -10 -9 -8 -7 -------- Run | Yrd Mat Min Exi Min Mat Fac Hostile Shots Fired 324 | . 46 . . 4 148 126 Missed 84 | . 6 . . . 39 39 Damage Taken 4347 | . 535 . . 58 1957 1797 Core 1212 | . 53 . . 11 436 712 Absorbed by Shields . | . . . . . . . Redirected to Shielding 11 | . 11 . . . . . Regen/Repaired (Parts) 350 | . . . . . 350 . Core Remaining (%) 64 | 100 . . . 74 20 . Volleys Fired 177 | . 41 . . 3 95 38 Largest 3 | . 2 . . 2 3 3 Hottest 180 | . 85 . . 121 180 170 Shots Fired 425 | . 81 . . 6 244 94 Gun 329 | . 81 . . 6 158 84 Cannon 96 | . . . . . 86 10 Launcher . | . . . . . . . Special . | . . . . . . . Kinetic 131 | . 78 . . . 51 2 Thermal 262 | . 3 . . 6 180 73 Explosive . | . . . . . . . Electromagnetic 32 | . . . . . 13 19 Robot Hit Streak 8 | . 5 . . 3 8 8 Robot Miss Streak 9 | . 6 . . 3 4 9 Penetration Max . | . . . . . . . Secondary Targets 2 | . 1 . . . 1 . Max Gunslinging Chain 1 | . 1 . . . 1 . Shots Hit Robots 222 | . 45 . . 4 128 45 Core Hits 101 | . 18 1 . 1 56 25 Critical Kills . | . . . . . . . Critical Parts Destroyed . | . . . . . . . Critical Strikes 8 | . . . . . 6 2 Burn 5 | . . . . . 3 2 Blast 3 | . . . . . 3 . Melee Attacks 4 | . 1 3 . . . . Impact . | . . . . . . . Slashing 4 | . 1 3 . . . . Piercing . | . . . . . . . Sneak Attacks . | . . . . . . . Combat Hostiles . | . . . . . . . Follow-up Attacks . | . . . . . . . Damage Inflicted 4159 | . 386 25 . 70 2541 1137 Guns 2505 | . 386 . . 59 1373 687 Cannons 1257 | . . . . . 1090 167 Explosions 343 | . . . . . 64 279 Melee . | . . . . . . . Ramming 54 | . . 25 . 11 14 4 Kinetic 962 | . 372 . . . 584 6 Thermal 2704 | . 14 . . 59 1888 743 Explosive 279 | . . . . . . 279 Electromagnetic 160 | . . . . . 55 105 Impact . | . . . . . . . Slashing . | . . . . . . . Piercing . | . . . . . . . Highest Corruption 9 | . . . . . 8 9 Average Corruption 6 | . . . . . 6 5 Corruption Purged . | . . . . . . . Corruption Blocked . | . . . . . . . Effects 43 | . . . . . 26 17 Message Errors 11 | . . . . . 7 4 Matter Fused 6 | . . . . . 4 2 Heat Flow Errors 11 | . . . . . 6 5 Energy Discharges 4 | . . . . . 4 . Parts Rejected 1 | . . . . . . 1 Data Loss (minor) 4 | . . . . . 2 2 Data Loss (major) 1 | . . . . . 1 . Misfires 1 | . . . . . . 1 Alerts 2 | . . . . . 1 1 Weapon Failures 2 | . . . . . 1 1 Overload Shots . | . . . . . . . Overflow Damage 25 | . . . . . 19 6 Projectiles 19 | . . . . . 19 . Explosions 6 | . . . . . . 6 Melee . | . . . . . . . Knockbacks 6 | . . . . . 6 . Impact 1 | . . . . . 1 . Kinetic 5 | . . . . . 5 . Secondary . | . . . . . . . Self-Inflicted Damage 2 | . . . . . . 2 Shots . | . . . . . . . Rammed 18 | . 1 6 . 1 9 1 Targets Rammed 20 | . 1 6 . 1 11 1 Kicked 2 | . . . . . 2 . Crushed . | . . . . . . . Highest Temperature 854 | . 106 . . 238 619 854 Average Temperature 208 | . 25 . . 128 211 253 Received Heat Transfer 1336 | . 342 . . 40 801 153 Effects 109 | . . . . . 50 59 Shutdowns 18 | . . . . . 9 9 Energy Bleed 15 | . . . . . 10 5 Interference 25 | . . . . . 9 16 Matter Decay 7 | . . . . . 3 4 Short Circuit 6 | . . . . . 1 5 Damage (minor) 8 | . . . . . 4 4 Damage (major) 24 | . . . . . 12 12 Damage (core) 6 | . . . . . 2 4 Siege Activations . | . . . . . . . Robots Corrupted . | . . . . . . . Combat Hostiles . | . . . . . . . Parts Fried . | . . . . . . . Impact Corruptions . | . . . . . . . Robots Melted 1 | . . . . . 1 . Combat Hostiles 1 | . . . . . 1 . Parts Melted 10 | . . . . . 8 2 Heat Transferred 5785 | . 37 . . 148 4120 1480 Parts Sabotaged . | . . . . . . . Parts Stolen . | . . . . . . . Parts Stripped . | . . . . . . . Power Chain Reactions 1 | . . . . . 1 . Alert | -11 -10 -10 -10 -9 -8 -7 ------- Run | Yrd Mat Min Exi Min Mat Fac Peak Influence 394 | . 111 43 . . 250 394 Initial 112 | . . 43 . . . 112 Average 91 | . 63 13 . . 118 196 Maximum Alert Level 1 | . . . . . 1 1 Low Security (%) 86 | 100 100 100 . 100 87 50 Level 1 13 | . . . . . 12 50 Level 2 . | . . . . . . . Level 3 . | . . . . . . . Level 4 . | . . . . . . . Level 5 . | . . . . . . . High Security . | . . . . . . . Max Security . | . . . . . . . Squads Dispatched 8 | . 1 . . . 3 4 Investigation 1 | . . . . . 1 . Extermination 1 | . . . . . . 1 Reinforcement 3 | . 1 . . . 2 . Assault . | . . . . . . . Garrison 3 | . . . . . . 3 Intercept . | . . . . . . . Searches Triggered . | . . . . . . . Construction Impeded 1 | . . . . . 1 . Haulers Reinforced . | . . . . . . . Active Scanning Responses . | . . . . . . . Cargo Convoy Interrupts . | . . . . . . . Stealth | -11 -10 -10 -10 -9 -8 -7 --------- Run | Yrd Mat Min Exi Min Mat Fac Distress Signals 6 | . 1 . . . 4 1 Communications Jammed . | . . . . . . . Distress Signals . | . . . . . . . Times Spotted 65 | . 11 . . 2 35 17 Peak Tracking Total 7 | . 3 . . 2 6 7 Tactical Retreats 6 | . 1 . . 1 3 1 Traps | -11 -10 -10 -10 -9 -8 -7 ------- Run | Yrd Mat Min Exi Min Mat Fac Traps Triggered 4 | . . . . . 4 . Indirectly . | . . . . . . . Trap Hack Attempts . | . . . . . . . Triggered . | . . . . . . . Disarmed . | . . . . . . . Reprogrammed . | . . . . . . . Reused . | . . . . . . . Traps Extracted . | . . . . . . . Installed . | . . . . . . . Triggered . | . . . . . . . Machines | -11 -10 -10 -10 -9 -8 -7 ---------- Run | Yrd Mat Min Exi Min Mat Fac Machines Disabled 15 | . . . . . 6 9 Max in Single Turn 3 | . . . . . 2 3 Garrison Access 1 | . . . . . 1 . Machines Repaired . | . . . . . . . Machines Dismantled . | . . . . . . . Machines Sabotaged . | . . . . . . . Overloaded Fab Kills . | . . . . . . . Hacking | -11 -10 -10 -10 -9 -8 -7 --------- Run | Yrd Mat Min Exi Min Mat Fac Machines Accessed 23 | . 5 . 1 . 11 6 Terminals 14 | . 4 . . . 7 3 Fabricators 1 | . . . . . . 1 Repair Stations 1 | . . . . . 1 . Recycling Units 2 | . 1 . . . 1 . Scanalyzers 2 | . . . . . 1 1 Garrison Access 2 | . . . . . 1 1 Total Hacks 47 | . 10 . 1 . 26 10 Successful 23 | . 5 . 1 . 15 2 Failed 24 | . 5 . . . 11 8 Catastrophic 6 | . 2 . . . 3 1 Database Lockouts . | . . . . . . . Manual 12 | . 4 . 1 . 5 2 Terminals 27 | . 9 . . . 14 4 Fabricators 2 | . . . . . . 2 Repair Stations 8 | . . . . . 8 . Recycling Units 2 | . 1 . . . 1 . Scanalyzers 5 | . . . . . 2 3 Garrison Access 2 | . . . . . 1 1 Terminal Hacks 11 | . 4 . 1 . 5 1 Record 1 | . . . . . 1 . Robot Analysis 1 | . . . . . 1 . Prototype ID Bank 1 | . . . . . 1 . Branch Access Points 1 | . 1 . . . . . Terminal Index 1 | . . . . . . 1 Alert Level 2 | . 1 . . . 1 . Hauler Manifests 1 | . 1 . . . . . Zone Layout 2 | . 1 . . . 1 . Derelict Proto ID Bank 1 | . . . 1 . . . Fabricator Hacks 1 | . . . . . . 1 Network Status 1 | . . . . . . 1 Repair Station Hacks 7 | . . . . . 7 . Scan Component 4 | . . . . . 4 . Repair 3 | . . . . . 3 . Recycling Unit Hacks 2 | . 1 . . . 1 . Report Inventory 2 | . 1 . . . 1 . Scanalyzer 1 | . . . . . 1 . Insert Component 1 | . . . . . 1 . Garrison Access Hacks 1 | . . . . . 1 . Seal Access 1 | . . . . . 1 . Unauthorized Hacks . | . . . . . . . Terminals . | . . . . . . . Fabricators . | . . . . . . . Repair Stations . | . . . . . . . Recycling Units . | . . . . . . . Scanalyzers . | . . . . . . . Garrison Access . | . . . . . . . Data Cores Recovered 1 | . . . . . 1 . Used 1 | . . . . . 1 . Hacking Detections 18 | . 4 . . . 8 6 Full Trace Events . | . . . . . . . Feedback Events . | . . . . . . . Feedback Blocked . | . . . . . . . Robot Schematics Acquired . | . . . . . . . Robots Built . | . . . . . . . Authchips . | . . . . . . . Time . | . . . . . . . Total Robot Build Rating . | . . . . . . . Part Schematics Acquired . | . . . . . . . Parts Built . | . . . . . . . Authchips . | . . . . . . . Time . | . . . . . . . Total Part Build Rating . | . . . . . . . Parts Repaired 3 | . . . . . 3 . Time 126 | . . . . . 126 . Parts Recycled . | . . . . . . . Recycled Matter . | . . . . . . . Retrieved Matter . | . . . . . . . Retrieved Components . | . . . . . . . Parts Scanalyzed 1 | . . . . . 1 . Part Schematics Acquired . | . . . . . . . Parts Damaged . | . . . . . . . Bothacking | -11 -10 -10 -10 -9 -8 -7 ------------ Run | Yrd Mat Min Exi Min Mat Fac Used RIF Installer . | . . . . . . . Robots Hacked . | . . . . . . . Non-combat . | . . . . . . . Combat . | . . . . . . . Robot Hacks Applied . | . . . . . . . Relay Couplers Released . | . . . . . . . Fabnet Peak Effective % . | . . . . . . . Robots Rewired . | . . . . . . . Allies Hacked . | . . . . . . . Hacks Repelled . | . . . . . . . Allies | -11 -10 -10 -10 -9 -8 -7 -------- Run | Yrd Mat Min Exi Min Mat Fac Total Allies . | . . . . . . . Largest Group . | . . . . . . . Highest-Rated Group . | . . . . . . . Highest-Rated Ally . | . . . . . . . Total Orders . | . . . . . . . Ally Attacks . | . . . . . . . Total Damage . | . . . . . . . Kills . | . . . . . . . Allies Corrupted . | . . . . . . . Allies Melted . | . . . . . . . Intel | -11 -10 -10 -10 -9 -8 -7 ------- Run | Yrd Mat Min Exi Min Mat Fac Robot Analysis Total 1 | . . . . . 1 . Derelict Logs Recovered 1 | . . 1 . . . . Drone Launches . | . . . . . . . Drone Recoveries . | . . . . . . . Exploration | -11 -10 -10 -10 -9 -8 -7 ------------- Run | Yrd Mat Min Exi Min Mat Fac Turns Passed 6079 | 48 698 1232 354 435 2388 924 Spaces Moved 3371 | 29 357 744 221 260 1147 613 Core 75 | 11 . . . . . 64 Treads 2128 | 18 357 744 221 260 528 . Legs 1168 | . . . . . 619 549 Wheels . | . . . . . . . Hover . | . . . . . . . Flight . | . . . . . . . Fastest Speed 50 | 50 160 160 160 160 120 50 Average Speed 147 | 133 160 160 160 160 146 116 Slowest Speed 270 | 200 160 160 160 160 260 270 Overloaded Moves . | . . . . . . . Propulsion Burnouts . | . . . . . . . Robots Hopped . | . . . . . . . Cave-ins Triggered . | . . . . . . . Exploration Rate (%) 51 | 3 55 96 63 59 71 14 Regions Visited 6 Branch Regions 3 Pre-discovered Areas . | . . . . . . . Known Exits Taken 1 | . 1 . . . . . Unknown Exits Taken 5 | 1 . 1 1 1 1 . Scrap Searched 1 | . . 1 . . . . Spaces Dug 2 | . 1 1 . . . . Terrain Destroyed 37 | . 1 1 . . 5 30 Melee 2 | . 1 1 . . . . Projectile 2 | . . . . . 2 . AOE 33 | . . . . . 3 30 Terrain Rammed . | . . . . . . . Walls Destroyed . | . . . . . . . Machines Disabled . | . . . . . . . Actions | -11 -10 -10 -10 -9 -8 -7 --------- Run | Yrd Mat Min Exi Min Mat Fac Total 4121 | 35 415 778 222 273 1649 749 Wait 385 | . 2 1 . 5 303 74 Move 3365 | 28 356 743 220 259 1146 613 Hop . | . . . . . . . Pick Up 46 | 1 6 6 1 2 24 6 Fast Attach 22 | 6 2 . . . 11 3 Attach 22 | . . . . . 15 7 Detach 9 | . 1 . . . 6 2 Swap 36 | . 3 10 . 1 19 3 Drop 35 | . 2 9 1 2 19 2 Fire 177 | . 41 . . 3 95 38 Melee 4 | . 1 3 . . . . Ram 1 | . . . . . . 1 Kick 2 | . . . . . 2 . Crush 17 | . 1 6 . 1 9 . Escape Stasis . | . . . . . . . Rewire . | . . . . . . . Trap . | . . . . . . . Miscellaneous . | . . . . . . . Route ------- -11/Scrapyard -10/Materials (discovered 4 exits: [*Mat x2] / *Min x2) -10/Mines (discovered 3 exits: [*Mat x2] / *Exi) -10/Exiles -9/Mines (discovered 2 exits: *Mat x2) -8/Materials -7/Factory History --------- Turn | Location | Event 16 | -11/Scrapyard | Discovered new exit (range 16) 49 | -11/Scrapyard | Entered Materials 121 | -10/Materials | Discovered new exit (range 9) 311 | -10/Materials | Build established: Mutant 366 | -10/Materials | Identified exit to Mines 399 | -10/Materials | Discovered new exit (range 6) 622 | -10/Materials | Discovered new exit (range 16) 747 | -10/Materials | Entered Mines 775 | -10/Mines | Met a Derelict bent on vengeance 920 | -10/Mines | Found a damaged Exp. Sensor Array with a note attached 923 | -10/Mines | Found Prototype Device 923 | -10/Mines | Identified Exp. Sensor Array 1006 | -10/Mines | Discovered new exit (range 9) 1158 | -10/Mines | Learned Materials terminal intel 1183 | -10/Mines | Discovered new exit (range 4) 1541 | -10/Mines | Joined a pair of Derelicts in attacking an 0b10 outpost 1811 | -10/Mines | Build established: Scavenger-Mutant 1973 | -10/Mines | Deemed a non-threat by the Exiles lab entrance 1973 | -10/Mines | Discovered new exit (range 5) 1979 | -10/Mines | Entered Exiles 2018 | -10/Exiles | Met 8R-AWN 2047 | -10/Exiles | Met EX-HEX 2090 | -10/Exiles | Met EX-BIN 2107 | -10/Exiles | Aligned with FarCom system 2109 | -10/Exiles | Given EX-Vault access code 2152 | -10/Exiles | Opened EX-Vault 2162 | -10/Exiles | Found Superbattery 2195 | -10/Exiles | Warned to stay clear of 0b10 Research branches 2239 | -10/Exiles | Met EX-DEC 2320 | -10/Exiles | Discovered new exit (range 10) 2333 | -10/Exiles | Left Exiles lab with Superbattery 2333 | -10/Exiles | Entered Mines 2422 | -9/Mines | Assembled infested the area 2427 | -9/Mines | Assisted by a Guerilla fighting off Assembled 2629 | -9/Mines | Build established: Scavenger-Skirmisher 2629 | -9/Mines | Discovered new exit (range 16) 2648 | -9/Mines | Discovered new exit (range 10) 2768 | -9/Mines | Entered Materials 2768 | -8/Materials | Evolved 4 slots: Propulsion x1, Utility x2, Weapon x1 2769 | -8/Materials | Loaded intel: 12 terminal locations 2944 | -8/Materials | Repaired Lgt. Nuclear Core 3131 | -8/Materials | Build established: Scavenger-Tank 3873 | -8/Materials | Lost 4 parts (1n3w) 4010 | -8/Materials | Repaired Phase Shifter 4050 | -8/Materials | Repaired Arm. Treads 4110 | -8/Materials | Build established: Scavenger-Mutant 4405 | -8/Materials | Core integrity fell below 50% 4932 | -8/Materials | Build established: Skirmisher 5093 | -8/Materials | Discovered new exit (range 16) 5156 | -8/Materials | Entered Factory 5156 | -7/Factory | Evolved 2 slots: Power x1, Utility x1 5390 | -7/Factory | Build established: Tank 5615 | -7/Factory | Lost 3 parts (1u2w) 5726 | -7/Factory | Garrison activated, responded to threat 6042 | -7/Factory | Core integrity fell below 50% 6047 | -7/Factory | Released all parts (5) 6048 | -7/Factory | Core integrity fell below 20% 6074 | -7/Factory | Lost 9 parts (1p3n2u3w) 6080 | -7/Factory | Destroyed by S-27 Virus with Autogun Last Messages --------------- 06046_ K-01 Serf collects debris. 06047_ Overheating: Imp. Ion Engine damaged (-19). 06047_ Released Hrd. Medium Armor Plating. 06047_ Released Weapon Cycler. 06047_ Released Imp. Heat Sink. 06047_ Released Imp. Light Armor Plating. 06047_ Released Lightning Gun. 06047_ Slug penetrates Wall. 06049_ R-06 Scavenger collects Corrupted Imp. Heat Sink. 06049_ K-01 Serf collects debris. 06053_ R-06 Scavenger collects Corrupted Lgt. Treads. 06054_ Slammed into W-25 Informer. 06060_ U-05 Engineer works on Subcomponent Replicator. 06065_ K-01 Serf collects debris. 06073_ System corrupted: IFF burst signal emitted. Map ----- +----------------------------------------------------+ | ## #??????# #??# """" #?????? | | ## #??????# ] #### ?????? | | ## #??????#] !+ ###### | | ###### #??????# # | | ############+##### # | | #???# ########### """ """ "" | | #???# #??# ### """ """ "" | | """ ##### #### + """ """ "" | | """ + # """ """ "" | | """ ###### # | | #????# # """ """ | | """ #????###### """ """ | | """ ########### """ """ "" | | """ """ """ "" | | p s % | | """"s "" | | """" """ ######## ####### | | / """" T" ########+####### | | !!/ """" """ # | | !/ """" "" # | | # ############# """" # | | ?????####????????# # | | ?????????????????# """" """" # | | ?????????????????# """" """" # | | ?????????????????# """" """" # | | ?????????????????# """"@"""" ################ | | ?????????????????# """" """" #??????????????# | | ?????????????????# """" " "" #??????????????# | | ?????????????????# % #????????????? + | | ?????????????????# """ """ #??????????????# | | ?????????????????# """ """" #??????????????# | | ?????????????????# """ %"""" #??????????????# | | ?????????????????# """" #??????????????? | | ?????????????????# """" #??????????????? | | ?????????????????# """" #??????????????? | | ?????????????????# #??????????????? | | ?????????????????# """" """" #??????????????? | | ?????????????????# """" """" #??????????????? | | ?????????????????## """" """" #??????????????? | | ??????????????????# """" """" #??????????????? | | ??????????????????# """" """" #??????????????? | | ??????????????????# """" """" #????#?????????? | | ??????????????????# ###T ###?####### | | ??????????????????# """" """" | | ??????????????????# """" """" #########??##### | | ??????????????????# """" """" #??????????????# | | ????????????? ##?# """" """" #??????????????# | | ?????######## """" """" ###########?????# | | ?????# # """" """" # ! ####### | | ?????# " # # ## | +----------------------------------------------------+ Best States ------------- Heat Dissipation 48 Energy Generation 25 Energy Capacity 1660 Matter Stores 300 Matter Capacity 300 Sight Range 16 Robot Scan Range 20 Terrain Scan Density 10 Armor Coverage 450 Core Shielding 20 Weapon Cycling 15 Phase Shifting 5 Evasion (%) 63 Armor Integrity Analysis 30 Recoil Reduction 3 Energy Filtering 30 Item Schematics ----------------- None Robot Schematics ------------------ None Fabricated ------------ Nothing Alien Tech Used ----------------- None Achievements -------------- None Challenges ------------ None Game ------ Seed OpticalColdDeconstructor Manual? 0 Play Time 01:04:26 Cumulative 33.9 hours Start 2024.12.04 @ 14:42:16 End 2024.12.04 @ 15:48:11 Sessions 1 Manual Loads 0 Difficulty Rogue Special Mode None Game No. 22 Rogue 16 Adventurer 6 Explorer 0 Win Type - Total 0 Types 0/0/0/0/0/0/0/0/0 Lore% 16 Gallery% 28 Achievement% 25 Wizard Run 0 Options --------- Layout 1 ASCII 0 Keyboard 0 Movement Arrows Keybinds 0 Fullscreen 2 Font 24/Smallcaps Map View 50x35 Zoom Use 0% Tactical HUD 1 Map Filters NONE Filters NONE Steam 1 RUN: 17de4a65-b2c2-4028-a0a2-beb5b62a4798